bitfinex/quotes_ETHUSD_20250824
["timestamp","ask_amount","ask_price","bid_price","bid_amount"]
[1756070853726,0.7223,4805.2,4805.1,4.92059218]
[1756070853909,0.7223,4805.2,4805.1,8.55559218]
[1756070855313,0.7223,4805.2,4805.1,0.104]
[1756070855539,0.7223,4805.2,4805.1,3.738]
[1756070857625,0.2911,4805.2,4805.1,6.738]
[1756070858158,0.2911,4805.2,4805.1,8.81912214]
[1756070858743,0.7223,4805.2,4805.1,6.738]
[1756070859064,0.7223,4805.2,4805.1,0.104]
[1756070859278,0.7223,4805.2,4805.1,3.738]
[1756070860832,0.7223,4805.2,4805.1,0.104]
[1756070861064,1.16981049,4805.2,4804.9,0.104]
[1756070861363,1.16981049,4805.2,4804.9,3.737]
[1756070861364,0.87871049,4805.1,4804.9,3.737]
[1756070861520,0.7213,4805.0,4804.9,3.737]
[1756070861725,1.16861874,4805.0,4804.8,0.004]
[1756070861926,0.87851874,4804.9,4804.8,0.004]
[1756070862126,1.16861874,4804.9,4804.8,0.004]
[1756070864174,0.7213,4804.9,4804.8,0.004]
[1756070864355,0.2901,4804.9,4804.8,0.004]
[1756070864543,0.2901,4804.9,4804.8,0.108]
[1756070864748,0.7605,4804.9,4804.8,0.108]
[1756070865148,0.001,4805.2,4804.8,0.108]
[1756070865345,0.4704,4805.1,4804.8,0.108]
[1756070865536,0.4704,4805.1,4804.8,0.004]
[1756070865736,0.4704,4805.1,4805.0,0.104]
[1756070866055,0.7685,4805.1,4805.0,3.736]
[1756070866856,0.001,4805.2,4805.0,3.736]
[1756070867848,0.001,4805.2,4805.1,0.2954]
[1756070868169,0.001,4805.2,4805.1,3.2954]
[1756070868642,0.001,4805.2,4805.1,3.0]
[1756070868967,0.001,4805.2,4805.1,6.632]
[1756070869356,0.001,4805.2,4805.1,6.9274]
[1756070869675,0.001,4805.2,4805.1,7.83906062]
[1756070870276,0.001,4805.2,4804.8,0.004]
[1756070870277,0.7695,4805.2,4804.8,0.004]
[1756070870577,0.4704,4805.1,4804.8,0.004]
[1756070870785,0.2981,4804.9,4804.8,0.004]
[1756070871084,0.2981,4804.9,4804.8,3.635]
[1756070871240,0.7685,4804.9,4804.8,3.635]
[1756070877891,0.7695,4804.9,4804.8,3.635]
[1756070879043,0.2991,4804.9,4804.8,3.635]
[1756070879250,0.001,4804.9,4804.8,3.635]
[1756070879987,0.2991,4804.9,4804.8,3.635]
[1756070880146,0.001,4804.9,4804.8,3.635]
[1756070880347,0.001,4804.9,4804.8,3.739]
[1756070880582,0.001,4804.9,4804.8,6.739]
[1756070880985,0.001,4804.9,4804.8,7.34539594]
[1756070881198,0.001,4804.9,4804.8,7.81289594]
[1756070881360,0.001,4804.9,4804.8,7.34539594]
[1756070881563,0.001,4804.9,4804.8,9.42664802]
[1756070882191,0.001,4804.9,4804.8,7.34539594]
[1756070882746,0.001,4804.9,4804.8,9.42664802]
[1756070882953,0.001,4804.9,4804.8,9.89414802]
[1756070884260,0.7695,4804.9,4804.8,0.108]
[1756070888417,1.21736826,4804.9,4804.8,0.004]
[1756070892170,0.44886826,4804.9,4804.8,0.004]
[1756070892363,1.21736826,4804.9,4804.8,0.108]
[1756070896192,1.21736826,4804.9,4804.8,0.004]
[1756070898816,1.32136826,4804.9,4804.8,0.004]
[1756070902124,0.86796826,4804.9,4804.8,0.004]
[1756070902529,1.30066826,4804.9,4804.8,0.004]
[1756070904640,0.86796826,4804.9,4804.8,0.004]
[1756070904844,1.30066826,4804.9,4804.8,0.004]
[1756070910627,0.86796826,4804.9,4804.8,0.004]
[1756070910829,0.55286826,4804.9,4804.8,0.3173]
[1756070911035,1.30066826,4804.9,4804.8,0.004]
[1756070911452,0.55286826,4804.9,4804.8,0.004]
[1756070913651,0.55286826,4804.9,4804.8,0.3173]
[1756070915469,0.44886826,4804.9,4804.8,0.8721]
[1756070915669,0.44886826,4804.9,4804.8,1.16745248]
[1756070916223,0.44886826,4804.9,4804.8,0.4213]
[1756070916428,0.001,4804.9,4804.8,0.7681]
[1756070916671,0.001,4804.9,4804.8,0.4213]
[1756070916851,0.001,4804.9,4804.8,9.90745527]
[1756070917161,0.001,4804.9,4804.8,2.95335208]
[1756070917368,0.001,4804.9,4804.8,3.81891945]
[1756070917566,0.001,4804.9,4804.8,7.43991945]
[1756070919472,0.001,4804.9,4804.8,0.108]
[1756070919769,0.7488,4804.9,4804.8,0.108]
[1756070920264,0.3161,4804.9,4804.8,0.108]
[1756070920761,0.001,4804.9,4804.8,0.108]
[1756070925375,0.2955,4804.9,4804.8,0.108]
[1756070925581,0.747,4804.9,4804.8,0.108]
[1756070925880,1.19418153,4804.9,4804.8,0.108]
[1756070928772,1.19418153,4804.9,4804.8,0.004]
[1756070929961,1.29818153,4804.9,4804.8,0.004]
[1756070930284,1.92390753,4804.9,4804.8,0.004]
[1756070930449,1.29818153,4804.9,4804.8,0.004]
[1756070930651,4.41241165,4804.9,4804.8,0.004]
[1756070930883,7.7869005,4804.9,4804.8,0.004]
[1756070931090,3.66,4804.8,4804.3,0.004]
[1756070931270,12.02604382,4804.4,4804.3,0.004]
[1756070931459,11.45978472,4804.4,4804.3,0.004]
[1756070931647,12.25818884,4804.4,4804.3,0.004]
[1756070931855,5.74181534,4803.5,4803.1,0.004]
[1756070932083,0.66,4802.8,4800.2,1.492]
[1756070932258,10.90860319,4802.5,4800.2,1.492]
[1756070932462,12.95578472,4802.5,4800.2,1.492]
[1756070932661,17.02428472,4802.5,4800.2,1.492]
[1756070933392,10.07018153,4802.5,4800.2,1.492]
[1756070934185,10.81123372,4802.5,4800.2,1.492]
[1756070934485,7.19423372,4802.5,4800.2,1.492]
[1756070934670,10.81223372,4802.5,4800.4,0.4399]
[1756070935251,10.07118153,4802.5,4800.4,0.4399]
[1756070935456,10.3970748,4802.5,4800.4,0.4399]
[1756070935657,10.3970748,4802.5,4800.3,0.4439]
[1756070936286,1.0675748,4802.5,4801.4,0.4399]
[1756070936471,0.62039327,4802.5,4801.4,0.4399]
[1756070936672,0.32589327,4802.5,4801.7,0.4439]
[1756070937281,0.32589327,4802.5,4802.4,0.3115]
[1756070937483,0.08349,4802.7,4802.4,0.3115]
[1756070938387,0.08349,4802.7,4802.5,0.4399]
[1756070938568,0.08349,4802.7,4802.6,0.3075]
[1756070938768,3.44349941,4803.8,4802.6,0.3075]
[1756070938989,0.44349941,4803.7,4802.6,0.7474]
[1756070939190,0.4399,4803.2,4802.6,0.7474]
[1756070939386,0.44349941,4803.7,4802.7,2.0409]
[1756070939586,1.0692521,4804.6,4803.6,0.3075]
[1756070939888,0.625786,4804.6,4803.6,0.3075]
[1756070940193,1.0692521,4804.6,4803.6,0.3075]
[1756070941760,0.104,4804.3,4803.7,0.104]
[1756070943373,1.0692521,4804.7,4804.2,0.3075]
[1756070943592,0.625786,4804.7,4804.2,0.3075]
[1756070943764,0.44438332,4804.9,4804.3,0.104]
[1756070944162,0.001,4804.9,4804.3,0.104]
[1756070947391,0.001,4804.9,4804.8,0.3075]
[1756070949372,0.105,4804.9,4804.8,0.3075]
[1756070951375,0.105,4804.9,4804.6,0.104]
[1756070951376,0.747,4804.9,4804.6,0.104]
[1756070951715,0.852,4804.9,4804.6,0.104]
[1756070952017,0.4005,4804.9,4804.6,0.104]
[1756070952328,0.106,4804.9,4804.6,0.104]
[1756070952623,0.106,4804.9,4804.8,0.3075]
[1756070954521,0.4157,4804.9,4804.6,0.104]
[1756070954828,0.4157,4804.9,4803.6,1.601]
[1756070954829,0.104,4804.7,4804.0,0.104]
[1756070955117,0.3097,4804.1,4804.0,0.104]
[1756070955426,0.7475,4804.1,4803.2,0.004]
[1756070955631,0.7475,4804.1,4803.6,0.104]
[1756070956627,0.3097,4804.1,4803.6,0.104]
[1756070956795,0.4378,4804.0,4803.6,0.104]
[1756070957128,0.625795,4804.0,4803.9,0.2947]
[1756070957287,0.88118332,4804.8,4803.9,0.2947]
[1756070957489,0.3097,4804.0,4803.9,0.104]
[1756070957811,0.7475,4804.0,4803.9,0.104]
[1756070958208,0.6975,4804.0,4803.9,0.104]
[1756070959028,0.6975,4804.0,4803.2,0.004]
[1756070959210,0.6975,4804.0,4803.6,0.104]
[1756070959721,0.625793,4803.9,4803.6,0.104]
[1756070960020,0.4378,4804.0,4803.6,0.104]
[1756070960220,0.104,4804.5,4803.8,0.2947]
[1756070960425,0.3097,4803.9,4803.6,0.104]
[1756070960623,0.4378,4803.8,4803.2,0.004]
[1756070960826,0.3097,4803.3,4803.2,0.004]
[1756070961901,0.7475,4803.3,4803.2,0.004]
[1756070962745,1.29488332,4803.3,4803.2,0.004]
[1756070962964,0.8515,4803.3,4803.2,0.004]
[1756070963109,0.85708332,4803.3,4803.2,0.004]
[1756070963306,1.29488332,4803.3,4803.2,0.004]
[1756070963580,1.19088332,4803.3,4803.2,0.004]
[1756070965229,5.59193551,4803.3,4803.2,0.004]
[1756070966306,4.85088332,4803.3,4803.2,0.004]
[1756070966814,4.19088332,4803.3,4803.2,0.004]
[1756070967216,5.3037,4803.3,4803.2,0.004]
[1756070968729,0.66,4803.1,4802.4,0.004]
[1756070968901,0.3097,4802.5,4802.4,0.004]
[1756070969106,7.36608332,4802.5,4802.4,0.004]
[1756070969306,8.91750831,4802.5,4802.4,0.004]
[1756070969538,8.65136032,4802.5,4802.4,0.004]
[1756070969936,8.65236032,4802.5,4802.4,0.004]
[1756070971270,10.73460914,4802.5,4802.4,0.004]
[1756070972734,8.65236032,4802.5,4802.4,0.004]
[1756070973147,10.73460914,4802.5,4802.4,0.004]
[1756070973670,17.81660914,4802.5,4802.4,0.004]
[1756070974060,18.14251572,4802.5,4802.4,0.004]
[1756070975469,16.0602669,4802.5,4802.4,0.004]
[1756070975772,48.14251572,4802.5,4802.2,0.004]
[1756070975975,30.88118332,4802.4,4802.2,0.004]
[1756070976274,1.19088332,4802.4,4802.2,0.004]
[1756070979376,8.16145221,4802.4,4802.2,0.004]
[1756070980284,8.24494221,4802.4,4802.2,0.004]
[1756070983977,3.66,4802.3,4802.2,0.004]
[1756070984176,8.48968332,4802.3,4802.2,0.004]
[1756070984680,8.57317332,4802.3,4802.2,0.004]
[1756070985893,5.10807332,4802.3,4802.2,0.004]
[1756070986176,8.57317332,4802.3,4802.2,0.004]
[1756070986376,8.10807332,4802.3,4802.2,0.004]
[1756070986692,8.57317332,4802.3,4802.2,0.004]
[1756070988150,10.65550886,4802.3,4802.2,0.004]
[1756070988351,8.57317332,4802.3,4802.2,0.004]
[1756070989284,8.57317332,4802.3,4802.1,0.044]
[1756070989465,1.01248332,4802.2,4802.1,0.044]
[1756070989664,8.29125221,4802.2,4802.1,0.044]
[1756070990379,8.37474621,4802.2,4802.1,0.044]
[1756070990951,15.45674621,4802.2,4802.1,0.044]
[1756070992655,14.99164621,4802.2,4802.1,0.044]
[1756070993284,10.16512157,4802.2,4802.1,0.044]
[1756070993599,9.39182157,4802.2,4802.1,0.044]
[1756070993885,9.70002157,4802.2,4802.1,0.044]
[1756070994090,10.16512157,4802.2,4802.1,0.044]
[1756070994290,7.90636682,4802.2,4802.1,0.044]
[1756070994667,11.51936682,4802.2,4802.1,0.044]
[1756070995191,3.66,4802.1,4801.6,0.004]
[1756070995357,7.38672481,4802.0,4801.6,0.004]
[1756070995685,9.51109024,4802.0,4801.6,0.004]
[1756070995889,9.59458024,4802.0,4801.9,0.3076]
[1756070996195,11.40811785,4802.0,4801.9,0.3076]
[1756070996555,7.79611785,4802.0,4801.9,0.004]
[1756070996782,11.40811785,4802.0,4801.9,0.3076]
[1756070997166,9.92048328,4802.0,4801.9,0.3076]
[1756070998792,3.0,4801.9,4801.1,0.044]
[1756070998964,5.54533255,4801.8,4801.1,0.044]
[1756070999169,0.104,4801.4,4801.1,0.044]
[1756070999369,4.05538332,4801.3,4801.1,0.044]
[1756070999678,0.44338332,4801.2,4801.1,0.044]
[1756071000061,0.54738332,4801.2,4801.1,0.044]
[1756071002960,1.01248332,4801.2,4801.1,0.044]
[1756071003389,0.54738332,4801.2,4801.1,0.044]
[1756071003634,3.66,4801.1,4800.3,0.004]
[1756071003763,3.0,4800.9,4800.3,0.004]
[1756071003963,4.0499091,4800.9,4800.3,0.004]
[1756071004163,5.54191622,4800.9,4800.3,0.004]
[1756071004400,5.69881622,4800.9,4800.3,0.004]
[1756071004713,9.11549044,4800.9,4800.3,0.004]
[1756071004861,9.42369044,4800.9,4800.3,0.004]
[1756071005061,9.70167967,4800.9,4800.3,0.004]
[1756071005363,9.50719544,4800.9,4800.3,0.004]
[1756071005560,10.16719544,4800.9,4800.3,0.004]
[1756071005787,10.29259146,4800.9,4800.3,0.004]
[1756071005992,3.0,4800.4,4800.3,0.004]
[1756071006189,8.02258332,4800.4,4800.3,0.004]
[1756071006407,8.59168332,4800.4,4800.3,0.004]
[1756071006976,8.91771312,4800.4,4800.3,0.004]
[1756071007431,8.91671312,4800.4,4800.3,0.004]
[1756071010195,8.59068332,4800.4,4800.3,0.004]
[1756071011729,8.59315291,4800.4,4800.3,0.004]
[1756071012196,9.7914622,4800.4,4800.3,0.004]
[1756071012625,5.4081622,4800.4,4800.3,0.004]
[1756071012809,9.4499622,4800.4,4800.3,0.004]
[1756071013008,9.7545622,4800.4,4800.3,0.004]
[1756071013204,8.63977491,4800.4,4800.3,0.004]
[1756071013594,8.96581246,4800.4,4800.3,0.004]
[1756071014335,10.07981038,4800.4,4800.3,0.004]
[1756071014635,10.07985543,4800.4,4800.3,0.004]
[1756071016236,0.63337491,4800.4,4800.3,0.004]
[1756071016611,1.08769544,4800.4,4800.3,0.004]
[1756071016920,0.44585291,4800.4,4800.3,0.004]
[1756071017507,0.44585291,4800.8,4800.3,0.49173328]
[1756071017706,0.44585291,4800.7,4800.3,0.38773328]
[1756071018005,0.44693956,4801.2,4800.4,2.08315495]
[1756071018229,0.55832053,4801.8,4800.4,2.08315495]
[1756071018406,0.44691908,4801.7,4800.4,2.08315804]
[1756071018607,0.626133,4802.0,4800.3,0.004]
[1756071018608,0.44691908,4801.6,4801.5,0.104]
[1756071020130,0.75151908,4801.6,4801.5,0.104]
[1756071020329,4.89731908,4801.6,4800.6,0.104]
[1756071020535,0.104,4801.3,4800.6,0.104]
[1756071020731,0.44691908,4801.2,4800.6,0.104]
[1756071020931,0.44691908,4801.1,4800.6,0.104]
[1756071021239,0.44691908,4801.0,4800.6,0.104]
[1756071021430,0.104,4801.3,4800.6,0.104]
[1756071021631,0.44746857,4801.2,4800.6,0.104]
[1756071021939,0.44746857,4801.1,4800.6,0.104]
[1756071022106,0.44746857,4801.0,4800.6,0.104]
[1756071022307,4.16732053,4801.8,4800.3,0.004]
[1756071022541,0.44759112,4801.7,4800.3,0.004]
[1756071022746,0.44759112,4801.6,4800.3,0.37733195]
[1756071022907,0.44759112,4801.5,4800.3,0.37733195]
[1756071023104,0.44759112,4801.4,4800.3,0.37733195]
[1756071023335,0.44759112,4801.3,4800.3,0.37733195]
[1756071023515,0.44759112,4801.2,4800.3,0.37733195]
[1756071023717,0.55832053,4801.8,4800.4,0.25046205]
[1756071023917,0.44735085,4801.7,4800.4,0.25046205]
[1756071024126,0.44735085,4801.6,4800.4,0.25046205]
[1756071024332,0.44735085,4801.5,4800.4,0.25046205]
[1756071024513,0.44735085,4801.4,4800.4,0.25046205]
[1756071024719,0.44735085,4801.3,4800.5,0.27550826]
[1756071024951,0.44735085,4801.2,4800.5,0.27550826]
[1756071025129,4.16732053,4801.9,4800.5,0.27550826]
[1756071025322,0.44720921,4801.8,4800.5,0.27550826]
[1756071025512,0.44720921,4801.7,4800.5,0.27550826]
[1756071025712,0.44720921,4801.6,4800.6,0.27360845]
[1756071025913,0.44720921,4801.5,4800.6,0.27360845]
[1756071026167,0.44720921,4801.4,4800.6,0.27360845]
[1756071026325,4.16732053,4801.9,4800.6,0.27360845]
[1756071026326,0.44720921,4801.3,4800.6,0.27360845]
[1756071026531,0.55832053,4801.9,4800.7,2.08302488]
[1756071026710,0.44694348,4801.8,4800.8,1.83766333]
[1756071027060,0.44694348,4801.7,4800.8,3.92064364]
[1756071027345,0.55932053,4802.3,4800.8,1.83766333]
[1756071027647,0.44684539,4802.2,4800.8,1.83766333]
[1756071027843,0.44684539,4802.1,4800.9,0.69206972]
[1756071028017,0.44684539,4802.0,4800.9,0.69206972]
[1756071028216,0.44684539,4801.9,4800.9,0.69206972]
[1756071028425,0.44684539,4801.8,4800.9,0.69206972]
[1756071028747,0.44684539,4801.7,4800.9,0.69206972]
[1756071028945,0.4318,4802.0,4800.9,0.69206972]
[1756071029152,0.44692673,4801.9,4800.9,0.69206972]
[1756071029354,0.44692673,4801.8,4800.9,0.69206972]
[1756071029517,0.44692673,4801.7,4800.9,0.69206972]
[1756071029717,0.44692673,4801.9,4800.9,0.69206972]
[1756071029929,0.44692673,4801.8,4800.9,0.69206972]
[1756071030133,0.44692673,4801.7,4800.9,0.69206972]
[1756071030344,0.44692673,4801.9,4800.9,0.69206972]
[1756071030547,0.44692673,4801.8,4800.9,0.69206972]
[1756071030746,0.44692673,4801.7,4800.9,0.69206972]
[1756071030946,0.44692673,4801.9,4800.9,0.69206972]
[1756071031158,0.44692673,4801.8,4800.9,0.69206972]
[1756071031345,0.4318,4802.0,4800.9,0.69206972]
[1756071031578,0.44678985,4801.9,4800.9,0.69206972]
[1756071031731,0.44678985,4801.8,4800.9,0.69206972]
[1756071031936,0.44678641,4801.7,4800.9,0.69206972]
[1756071032147,0.44678641,4801.8,4800.9,0.69206972]
[1756071032359,0.44678641,4801.8,4801.5,0.104]
[1756071032755,0.4318,4801.8,4801.5,0.104]
[1756071032962,0.3046,4801.6,4801.5,0.104]
[1756071033160,0.7364,4801.6,4800.8,1.602]
[1756071033364,0.7364,4801.6,4801.1,0.104]
[1756071033561,0.4318,4801.5,4801.1,0.104]
[1756071033877,0.3046,4801.2,4800.3,0.004]
[1756071034059,0.3046,4801.2,4800.5,0.104]
[1756071034377,0.4318,4801.1,4800.5,0.104]
[1756071035050,0.5358,4801.1,4800.5,0.104]
[1756071035373,0.3046,4800.6,4800.5,0.104]
[1756071035556,1.28718641,4800.6,4800.3,0.004]
[1756071035736,0.44678641,4800.5,4800.3,0.004]
[1756071035936,0.75138641,4800.4,4800.3,0.004]
[1756071036346,1.18318641,4800.4,4800.3,0.004]
[1756071037864,1.84318641,4800.4,4800.3,0.004]
[1756071038065,1.94718641,4800.4,4800.3,0.004]
[1756071038483,5.50550694,4800.4,4800.3,0.004]
[1756071038710,1.94718641,4800.4,4800.3,0.004]
[1756071039183,1.28718641,4800.4,4800.3,0.004]
[1756071040689,1.28742492,4800.4,4800.3,0.004]
[1756071041856,0.55102492,4800.4,4800.3,0.004]
[1756071042171,0.44702492,4800.4,4800.3,0.004]
[1756071042553,1.18342492,4800.4,4800.3,0.004]
[1756071043975,6.00720607,4800.4,4800.3,0.004]
[1756071044181,5.44842492,4800.4,4800.3,0.004]
[1756071045077,4.78842492,4800.4,4800.3,0.004]
[1756071046612,4.91597878,4800.4,4800.3,0.004]
[1756071046780,1.00637878,4800.4,4800.3,0.004]
[1756071047181,0.44702492,4800.4,4800.3,0.004]
[1756071049220,0.44702492,4800.4,4800.3,0.108]
[1756071053698,1.18432492,4800.4,4800.3,0.004]
[1756071053903,1.28832492,4800.4,4800.3,0.004]
[1756071054430,0.55102492,4800.4,4800.3,0.004]
[1756071054801,1.28832492,4800.4,4800.3,0.004]
[1756071056814,1.94832492,4800.4,4800.3,0.004]
[1756071057002,8.55132492,4800.4,4800.3,0.004]
[1756071057206,8.63484492,4800.4,4800.3,0.004]
[1756071058540,5.63484492,4800.4,4800.3,0.004]
[1756071058752,6.38210362,4800.4,4800.3,0.004]
[1756071060451,5.63484492,4800.4,4800.3,0.004]
[1756071061721,0.63454492,4800.4,4800.3,0.004]
[1756071061916,0.44702492,4800.4,4800.3,0.004]
[1756071062120,0.001,4800.6,4800.3,0.004]
[1756071063054,0.001,4800.6,4800.4,0.51313051]
[1756071063261,0.001,4800.6,4800.4,2.08315511]
[1756071063425,0.001,4800.6,4800.5,2.08311634]
[1756071063621,0.001,4800.6,4800.3,0.004]
[1756071065526,0.4526,4800.6,4800.3,0.004]
[1756071065725,0.4516,4800.5,4800.3,0.004]
[1756071066042,0.2857,4800.4,4800.3,0.004]
[1756071066356,0.44828595,4800.4,4800.3,0.004]
[1756071067859,0.001,4800.6,4800.3,0.004]
[1756071068036,0.001,4800.6,4800.4,2.08315973]
[1756071068363,0.001,4800.6,4800.5,2.8045596]
[1756071069359,0.001,4800.6,4800.5,5.8045596]
[1756071070485,0.001,4800.6,4800.5,7.4065596]
[1756071071962,0.001,4800.6,4800.5,7.5105596]
[1756071072731,0.001,4800.6,4800.5,8.1705596]
[1756071073044,0.001,4800.6,4800.5,8.2540176]
[1756071073667,0.001,4801.1,4801.0,2.08289939]
[1756071073868,0.001,4801.6,4801.5,5.74268249]
[1756071074166,0.001,4801.8,4801.7,2.08259574]
[1756071074462,0.001,4801.8,4801.7,8.68259574]
[1756071075369,0.001,4801.8,4801.7,8.76602874]
[1756071076266,0.001,4801.8,4801.7,5.16602874]
[1756071076566,0.001,4801.8,4801.7,10.8981463]
[1756071077282,1e-08,4801.8,4801.7,11.5581463]
[1756071077641,1e-08,4803.3,4802.8,0.66]
[1756071077840,1e-08,4803.3,4803.2,5.84594536]
[1756071078047,1e-08,4803.3,4803.2,7.87728899]
[1756071078260,1e-08,4803.3,4803.2,7.21728899]
[1756071078459,1e-08,4803.3,4803.2,6.703]
[1756071078664,1e-08,4803.3,4803.2,8.78494536]
[1756071079365,0.74330001,4803.3,4803.2,6.703]
[1756071079566,0.74330001,4803.3,4803.2,8.78494536]
[1756071080280,0.44530001,4803.3,4803.2,8.78494536]
[1756071080453,0.44530001,4803.3,4803.2,9.8235399]
[1756071080777,1e-08,4803.3,4803.2,9.8235399]
[1756071081278,1e-08,4803.3,4803.2,10.4835399]
[1756071081861,0.001,4803.7,4803.5,0.66]
[1756071082061,0.001,4803.7,4803.6,9.443772]
[1756071082283,0.001,4803.7,4803.6,11.20838731]
[1756071082650,0.001,4803.7,4803.6,10.54838731]
[1756071083169,0.001,4803.7,4803.6,11.20838731]
[1756071085177,0.04,4804.4,4804.3,2.74146868]
[1756071085391,0.04,4804.4,4804.3,10.93946868]
[1756071085562,0.04,4804.4,4804.3,12.34556924]
[1756071087462,1e-08,4804.4,4804.3,12.34556924]
[1756071088078,1e-08,4804.7,4804.6,2.74133871]
[1756071088277,1e-08,4804.7,4804.6,9.44233871]
[1756071088892,1e-08,4805.2,4805.1,2.74112214]
[1756071089093,0.4453,4807.0,4805.8,2.74081901]
[1756071089281,0.4453,4807.0,4805.8,11.04281901]
[1756071089761,1e-08,4805.9,4805.8,26.1244837]
[1756071091681,1e-08,4805.9,4805.8,26.2824041]
[1756071092100,0.47530001,4807.4,4805.9,3.0]
[1756071092418,0.47530001,4807.4,4805.8,20.43758509]
[1756071092419,0.44325804,4807.3,4806.2,0.66]
[1756071092575,0.47530001,4807.4,4807.2,2.18421301]
[1756071092767,1.18640753,4807.3,4807.2,2.18421301]
[1756071092968,0.44310753,4807.3,4807.2,7.37921301]
[1756071093195,0.44310753,4807.3,4807.2,11.62516069]
[1756071093599,0.44310753,4807.3,4807.2,12.28516069]
[1756071094006,1.18640753,4807.3,4807.2,11.62516069]
[1756071094584,1.18640753,4807.3,4807.2,8.299]
[1756071094793,1.74118739,4807.3,4807.2,3.104]
[1756071095085,1.18640753,4807.3,4807.2,6.699]
[1756071096377,2.3004505,4807.3,4807.2,6.698]
[1756071097003,1.18640753,4807.3,4807.2,8.77821301]
[1756071097229,0.44310753,4807.3,4807.2,10.81687237]
[1756071097511,1.47956967,4807.3,4807.2,9.86507237]
[1756071097820,0.44310753,4807.3,4807.2,9.86507237]
[1756071099283,0.99718881,4807.3,4807.2,9.86507237]
[1756071099618,0.9976961,4807.3,4807.2,10.15787237]
[1756071100413,0.44310753,4807.3,4807.2,10.15787237]
[1756071101109,0.44310753,4807.3,4807.2,10.81787237]
[1756071101528,0.44310753,4807.3,4807.2,10.52507237]
[1756071102104,0.44310753,4807.3,4807.2,10.81787237]
[1756071102707,0.73846214,4807.9,4807.3,3.0]
[1756071103010,0.002,4808.3,4808.2,5.73978037]
[1756071103214,0.04,4809.4,4808.2,5.73978037]
[1756071103215,0.73846214,4808.8,4808.3,2.07973712]
[1756071103405,0.73846214,4809.2,4808.3,6.05633712]
[1756071103602,0.73846214,4809.3,4808.3,6.05633712]
[1756071103825,0.73846214,4809.3,4808.3,6.46983712]
[1756071104027,0.04,4809.4,4808.3,6.62801895]
[1756071104234,0.04,4809.4,4809.3,2.73930468]
[1756071104533,0.04,4809.4,4809.3,11.36090468]
[1756071105632,0.04,4810.4,4809.7,0.66]
[1756071105833,0.19284585,4810.3,4810.2,20.82058032]
[1756071106127,0.04,4810.4,4810.3,5.18287241]
[1756071106301,0.04,4810.4,4810.3,6.42981815]
[1756071106501,0.04,4810.4,4810.3,7.19049219]
[1756071106698,0.04,4810.4,4810.3,7.42124129]
[1756071106904,0.04,4810.4,4810.3,26.00990598]
[1756071107312,0.04,4810.4,4810.3,25.77915688]
[1756071107701,0.04,4810.4,4810.3,2.00761978]
[1756071107905,0.04,4810.4,4810.3,10.38189219]
[1756071108805,0.7898,4810.4,4810.3,3.0]
[1756071109015,0.04,4810.4,4810.3,8.69087241]
[1756071109209,0.04,4810.4,4810.3,9.66747241]
[1756071109516,0.04,4810.4,4810.3,9.77262602]
[1756071109918,0.003,4810.7,4810.6,0.66]
[1756071110124,0.003,4810.7,4810.6,22.67111142]
[1756071110318,0.003,4810.7,4810.6,26.28911142]
[1756071110742,0.04,4811.4,4811.3,20.82010502]
[1756071110911,0.04,4811.4,4811.3,26.03810502]
[1756071111110,0.04,4811.4,4811.3,26.35470502]
[1756071111339,0.04,4811.4,4811.3,28.06944865]
[1756071111538,0.04,4811.4,4811.3,12.64438396]
[1756071111813,0.04,4811.4,4811.3,13.30438396]
[1756071112032,0.04,4811.4,4811.3,14.88791036]
[1756071112345,1.11404297,4813.9,4812.3,5.73800843]
[1756071112346,0.456,4812.8,4812.3,5.73800843]
[1756071112516,0.456,4812.8,4812.3,10.96900843]
[1756071112716,0.456,4813.3,4812.3,11.935734]
[1756071112911,0.3338,4812.4,4812.3,8.891]
[1756071113142,0.04,4812.4,4812.3,10.96900843]
[1756071114266,0.3338,4812.4,4811.7,1.598]
[1756071114430,0.19224663,4812.3,4811.9,3.0]
[1756071114758,0.2938,4812.0,4811.7,1.598]
[1756071115056,0.64824563,4811.9,4811.8,6.644]
[1756071115259,0.94204563,4811.9,4811.8,6.644]
[1756071116026,0.94204563,4811.9,4811.8,3.0]
[1756071116560,0.04,4812.4,4811.9,0.66]
[1756071116735,0.04,4812.4,4812.3,6.05460843]
[1756071116937,0.04,4812.4,4812.3,6.15860843]
[1756071117337,0.3338,4812.4,4812.3,0.104]
[1756071117560,0.7898,4812.4,4809.5,15.08166469]
[1756071117746,0.64832719,4812.3,4809.7,2.38863175]
[1756071117931,0.63552091,4812.2,4809.8,1.95495579]
[1756071118124,0.04,4812.4,4810.5,2.07875155]
[1756071118125,1.09152091,4812.1,4810.5,2.07875155]
[1756071118365,1.09152091,4812.0,4809.9,3.0]
[1756071118659,1.09174592,4811.9,4809.8,1.95495579]
[1756071118845,0.89941873,4811.8,4809.5,0.10408832]
[1756071119160,0.63587923,4811.7,4810.0,2.07899266]
[1756071119461,0.63587923,4811.7,4809.7,2.07913113]
[1756071119462,0.63587923,4811.6,4809.5,0.10090283]
[1756071119628,0.63587923,4811.5,4809.3,15.08166469]
[1756071119826,1.09195156,4811.4,4809.5,2.07919871]
[1756071120028,0.63595156,4811.3,4809.5,2.07919871]
[1756071120235,0.04,4812.4,4809.4,1.51216647]
[1756071120236,0.2938,4809.6,4809.4,1.51216647]
[1756071120429,0.456,4809.5,4809.1,0.04]
[1756071120664,0.2938,4809.2,4809.1,0.04]